[Event "GER-chT Youth Countries 2020"]
[Site "Berlin"]
[Date "2020.10.01"]
[Round "3"]
[White "Reich, Elisabeth"]
[Black "Marrufo, Emilia"]
[Result "1-0"]
[ECO "C55"]
[WhiteElo "1128"]
[BlackElo "796"]
[Annotator "NA"]
[PlyCount "69"]
[EventDate "2020.09.30"]
[EventType "team-tourn"]
[EventRounds "7"]
[EventCountry "GER"]
[SourceTitle "playchess.com"]
[Source "ChessBase"]
[SourceQuality "1"]
[TimeControl "30/5400+30:0"]

1. e4 {[%emt 0:00:00]} e5 {[%emt 0:00:00]} 2. Nf3 {[%emt 0:00:00]} Nc6 {[%emt 0:00:00]} 3. Bc4 {[%emt 0:00:00]} Nf6 {[%emt 0:01:59]} 4. d3 {[%emt 0:00:00]} Bb4+ {[%emt 0:01:15]} 5. Bd2 {[%emt 0:00:15]} Bxd2+ {[%emt 0:03:37]} 6. Nbxd2 {[%emt 0:00:21]} d6 {[%emt 0:03:00]} 7. h3 {[%emt 0:00:32]} O-O {[%emt 0:02:44]} 8. O-O {[%emt 0:00:20]} Nd4 {[%emt 0:03:38]} 9. Nxd4 {[%emt 0:00:25]} exd4 {[%emt 0:00:30]} 10. Nf3 {[%emt 0:00:15]} c6 {[%emt 0:01:37]} 11. Bb3 {[%emt 0:01:25]} d5 {[%emt 0:01:25]} 12. exd5 {[%emt 0:00:26]} Nxd5 {[%emt 0:01:58]} 13. Nxd4 {[%emt 0:00:36]} Qg5 {[%emt 0:00:56]} 14. Qf3 {[%emt 0:01:03]} Rd8 {[%emt 0:06:51]} 15. Ne2 {[%emt 0:01:02]} Rd6 {[%emt 0:05:10]} 16. Ng3 {[%emt 0:00:30]} Rf6 {[%emt 0:01:50]} 17. Ne4 {[%emt 0:01:46]} Rxf3 {[%emt 0:05:17]} 18. Nxg5 {[%emt 0:00:09]} Rf6 {[%emt 0:01:36]} 19. Nf3 {[%emt 0:00:25]} Rg6 {[%emt 0:01:10]} 20. Bxd5 {[%emt 0:01:06]} cxd5 {[%emt 0:00:26]} 21. Kh2 {[%emt 0:00:13]} b6 {[%emt 0:02:39]} 22. Rfe1 {[%emt 0:00:19]} Bb7 {[%emt 0:00:26]} 23. Re7 {[%emt 0:00:14]} Rb8 {[%emt 0:00:46]} 24. Ne5 {[%emt 0:01:22]} Rg5 {[%emt 0:01:18]} 25. Nxf7 {[%emt 0:00:56]} Rf5 {[%emt 0:01:24]} 26. Nd6 {[%emt 0:00:22]} Rf7 {[%emt 0:00:57]} 27. Rxf7 {[%emt 0:00:21]} Bc6 {[%emt 0:00:45]} 28. Rxa7 {[%emt 0:00:21]} d4 {[%emt 0:01:28]} 29. Re1 {[%emt 0:00:14]} h6 {[%emt 0:00:45]} 30. Ree7 {[%emt 0:00:09]} Kh8 {[%emt 0:01:24]} 31. Rxg7 {[%emt 1:30:23]} h5 {[%emt 1:30:51]} 32. Rh7+ {[%emt 0:00:14]} Kg8 {[%emt 0:00:07]} 33. Nf5 {[%emt 0:00:51]} Be8 {[%emt 0:01:30]} 34. Rag7+ {[%emt 0:00:33]} Kf8 {[%emt 0:00:35]} 35. Rh8# {[%emt 0:00:11]} 1-0

[Event "GER-chT Youth Countries 2020"]
[Site "Berlin"]
[Date "2020.10.01"]
[Round "3"]
[White "Richter, Johanna"]
[Black "Lorenz, Veronika"]
[Result "0-1"]
[ECO "D32"]
[WhiteElo "1107"]
[BlackElo "1273"]
[Annotator "NA"]
[PlyCount "38"]
[EventDate "2020.09.30"]
[EventType "team-tourn"]
[EventRounds "7"]
[EventCountry "GER"]
[SourceTitle "playchess.com"]
[Source "ChessBase"]
[SourceQuality "1"]
[TimeControl "30/5400+30:0"]

1. d4 {[%emt 0:00:00]} d5 {[%emt 0:00:00]} 2. c4 {[%emt 0:00:00]} e6 {[%emt 0:00:00]} 3. Nc3 {[%emt 0:00:00]} c5 {[%emt 0:01:02]} 4. Nf3 cxd4 {[%emt 0:09:42]} 5. Nxd4 {[%emt 0:00:20]} e5 {[%emt 0:00:55]} 6. Nf3 {[%emt 0:04:33]} d4 7. Nd5 Nc6 {[%emt 0:08:14]} 8. e3 {[%emt 0:01:37]} Bc5 {[%emt 0:05:18]} 9. b3 Nf6 {[%emt 0:01:37]} 10. Nxf6+ {[%emt 0:03:01]} Qxf6 {[%emt 0:00:13]} 11. Bb2 {[%emt 0:01:27]} dxe3 12. fxe3 Bb4+ {[%emt 0:18:27]} 13. Nd2 {[%emt 0:02:12]} Qh4+ {[%emt 0:00:39]} 14. g3 {[%emt 0:00:46]} Qe4 {[%emt 0:00:45]} 15. Rg1 {[%emt 0:06:08]} Qxe3+ {[%emt 0:01:10]} 16. Qe2 {[%emt 0:00:44]} Bxd2+ {[%emt 0:02:39]} 17. Kd1 {[%emt 0:02:32]} Bg4 {[%emt 0:00:18]} 18. Qxg4 Qe1+ 19. Kc2 {[%emt 0:00:42]} Nb4# 0-1

[Event "GER-chT Youth Countries 2020"]
[Site "Berlin"]
[Date "2020.10.01"]
[Round "3"]
[White "Zimmer, Tim"]
[Black "Aumueller, Naum"]
[Result "0-1"]
[ECO "C54"]
[WhiteElo "1025"]
[BlackElo "1690"]
[Annotator "NA"]
[PlyCount "70"]
[EventDate "2020.09.30"]
[EventType "team-tourn"]
[EventRounds "7"]
[EventCountry "GER"]
[SourceTitle "playchess.com"]
[Source "ChessBase"]
[SourceQuality "1"]
[TimeControl "30/5400+30:0"]

1. e4 {[%emt 0:00:00]} e5 {[%emt 0:00:00]} 2. Nf3 {[%emt 0:00:00]} Nc6 {[%emt 0:00:00]} 3. Bc4 {[%emt 0:00:00]} Bc5 {[%emt 0:00:00]} 4. c3 {[%emt 0:00:08]} Nf6 {[%emt 0:00:25]} 5. d4 {[%emt 0:00:15]} exd4 {[%emt 0:00:53]} 6. cxd4 {[%emt 0:00:11]} Bb4+ {[%emt 0:01:37]} 7. Bd2 {[%emt 0:00:08]} Bxd2+ {[%emt 0:01:30]} 8. Nbxd2 {[%emt 0:00:16]} d5 {[%emt 0:17:14]} 9. exd5 {[%emt 0:00:17]} Nxd5 {[%emt 0:00:53]} 10. O-O {[%emt 0:01:07]} O-O {[%emt 0:08:38]} 11. a3 {[%emt 0:04:23]} Nb6 {[%emt 0:07:59]} 12. Qc2 {[%emt 0:19:52]} Nxd4 {[%emt 0:06:04]} 13. Nxd4 {[%emt 0:00:12]} Qxd4 {[%emt 0:00:08]} 14. Bd3 {[%emt 0:00:11]} h6 {[%emt 0:09:39]} 15. Nf3 {[%emt 0:03:25]} Qf4 {[%emt 0:01:25]} 16. Rfe1 {[%emt 0:02:22]} c6 {[%emt 0:04:34]} 17. Re7 {[%emt 0:02:13]} Nd5 {[%emt 0:01:40]} 18. Re4 {[%emt 0:00:35]} Qf6 {[%emt 0:00:46]} 19. Rae1 {[%emt 0:01:18]} Bf5 {[%emt 0:01:10]} 20. Re5 {[%emt 0:02:55]} Bxd3 {[%emt 0:01:32]} 21. Qxd3 {[%emt 0:00:13]} Rad8 {[%emt 0:01:27]} 22. Rf5 {[%emt 0:00:37]} Qg6 {[%emt 0:04:05]} 23. Nh4 {[%emt 0:12:05]} Qg4 {[%emt 0:03:54]} 24. Qe4 {[%emt 0:12:45]} Qxe4 {[%emt 0:02:22]} 25. Rxe4 {[%emt 0:00:08]} Rfe8 {[%emt 0:03:16]} 26. Rfe5 {[%emt 0:02:04]} Rxe5 {[%emt 0:01:07]} 27. Rxe5 {[%emt 0:00:25]} g6 {[%emt 0:01:43]} 28. f3 {[%emt 0:00:43]} Kg7 {[%emt 0:00:29]} 29. g3 {[%emt 0:00:54]} Kf6 {[%emt 0:00:57]} 30. f4 {[%emt 0:00:53]} Nb6 {[%emt 0:02:06]} 31. Nf3 {[%emt 1:31:30]} Nc4 {[%emt 1:32:08]} 32. Re4 {[%emt 0:01:32]} Nd2 {[%emt 0:05:03]} 33. Nxd2 {[%emt 0:03:53]} Rxd2 {[%emt 0:00:15]} 34. Rb4 {[%emt 0:00:08]} b5 {[%emt 0:02:07]} 35. a4 {[%emt 0:02:06]} a5 {[%emt 0:01:31]} 0-1

[Event "GER-chT Youth Countries 2020"]
[Site "Berlin"]
[Date "2020.10.01"]
[Round "3"]
[White "Chassard, Cecilia"]
[Black "Heuberger, Sandra"]
[Result "0-1"]
[ECO "C55"]
[WhiteElo "980"]
[BlackElo "1004"]
[Annotator "NA"]
[PlyCount "54"]
[EventDate "2020.09.30"]
[EventType "team-tourn"]
[EventRounds "7"]
[EventCountry "GER"]
[SourceTitle "playchess.com"]
[Source "ChessBase"]
[SourceQuality "1"]
[TimeControl "30/5400+30:0"]

1. e4 {[%emt 0:00:00]} e5 {[%emt 0:00:00]} 2. Nf3 {[%emt 0:00:00]} Nc6 {[%emt 0:00:00]} 3. Bc4 {[%emt 0:00:00]} Nf6 {[%emt 0:00:00]} 4. d3 {[%emt 0:00:00]} d5 {[%emt 0:01:22]} 5. exd5 {[%emt 0:01:26]} Nxd5 {[%emt 0:00:46]} 6. Bxd5 {[%emt 0:00:08]} Qxd5 {[%emt 0:00:15]} 7. c4 {[%emt 0:00:16]} Qd8 {[%emt 0:00:29]} 8. O-O {[%emt 0:03:02]} Bg4 {[%emt 0:01:03]} 9. h3 {[%emt 0:00:48]} Bh5 {[%emt 0:00:27]} 10. Nbd2 {[%emt 0:00:32]} Bd6 {[%emt 0:09:38]} 11. Re1 {[%emt 0:00:36]} O-O {[%emt 0:02:37]} 12. Qc2 {[%emt 0:01:08]} Re8 {[%emt 0:01:17]} 13. b3 {[%emt 0:00:32]} Bg6 {[%emt 0:04:36]} 14. Qc3 {[%emt 0:01:42]} f6 {[%emt 0:01:42]} 15. d4 {[%emt 0:00:43]} exd4 {[%emt 0:01:45]} 16. Nxd4 {[%emt 0:00:17]} Nxd4 {[%emt 0:00:22]} 17. Qxd4 {[%emt 0:00:27]} Bh2+ {[%emt 0:00:05]} 18. Kxh2 {[%emt 0:04:28]} Qxd4 {[%emt 0:00:06]} 19. Rxe8+ {[%emt 0:00:11]} Rxe8 {[%emt 0:00:08]} 20. Bb2 {[%emt 0:01:59]} Qxd2 {[%emt 0:01:31]} 21. Ba3 {[%emt 0:01:06]} Qd4 {[%emt 0:00:50]} 22. Rc1 {[%emt 0:00:18]} h6 {[%emt 0:00:55]} 23. f3 {[%emt 0:01:18]} Re2 {[%emt 0:02:25]} 24. Rg1 {[%emt 0:00:17]} Qf4+ {[%emt 0:01:34]} 25. Kh1 {[%emt 0:00:11]} Bf5 {[%emt 0:01:00]} 26. Bc1 {[%emt 0:01:57]} Qg3 {[%emt 0:01:24]} 27. Rf1 {[%emt 0:00:44]} Qxg2# {[%emt 0:00:16]} 0-1

[Event "GER-chT Youth Countries 2020"]
[Site "Berlin"]
[Date "2020.10.02"]
[Round "4"]
[White "Muckle, Julius"]
[Black "Roseneck, Jonas"]
[Result "1/2-1/2"]
[ECO "D80"]
[WhiteElo "2427"]
[BlackElo "2417"]
[Annotator "ChessBase"]
[PlyCount "89"]
[EventDate "2020.09.30"]
[EventType "team-tourn"]
[EventRounds "7"]
[EventCountry "GER"]
[SourceTitle "playchess.com"]
[Source "ChessBase"]
[SourceQuality "1"]
[TimeControl "30/5400+30:0"]

1. d4 {[%emt 0:00:00]} Nf6 {[%emt 0:00:00]} 2. c4 {[%emt 0:00:00]} g6 {[%emt 0:00:00]} 3. Nc3 {[%emt 0:00:00]} d5 {[%emt 0:00:00]} 4. Bg5 {[%emt 0:00:00]} Bg7 {[%emt 0:00:00]} 5. Bxf6 {[%emt 0:00:20]} Bxf6 {[%emt 0:00:00]} 6. cxd5 {[%emt 0:00:04]} c6 {[%emt 0:00:00]} 7. Rc1 {[%emt 0:00:29]} O-O {[%emt 0:00:06]} 8. dxc6 {[%emt 0:00:26]} Qxd4 9. Qxd4 {[%emt 0:09:57]} Bxd4 {[%emt 0:00:30]} 10. c7 {[%emt 0:00:01]} Nc6 {[%emt 0:00:25]} 11. e3 {[%emt 0:10:59]} Bb6 {[%emt 0:15:01]} 12. Bb5 {[%emt 0:01:19]} Bxc7 {[%emt 0:08:46]} 13. Nf3 {[%emt 0:02:41]} Bd7 {[%emt 0:22:20]} 14. O-O {[%emt 0:05:11]} Rfd8 15. Ne4 a6 {[%emt 0:05:40]} 16. Ba4 {[%emt 0:01:17]} b5 {[%emt 0:03:18]} 17. Bb3 {[%emt 0:28:36]} Bb6 18. Neg5 {[%emt 0:00:08]} e6 {[%emt 0:03:07]} 19. Ne4 {[%emt 0:01:27]} Kg7 {[%emt 0:11:02]} 20. Rfd1 Na5 21. Ne5 {[%emt 0:02:03]} Nxb3 {[%emt 0:01:57]} 22. axb3 {[%emt 0:01:47]} Be8 23. Nd6 {[%emt 0:01:14]} Kf8 {[%emt 0:00:32]} 24. g4 {[%emt 0:10:05]} Ke7 {[%emt 0:08:52]} 25. Nxe8 {[%emt 0:02:38]} Kxe8 {[%emt 0:00:54]} 26. Rxd8+ {[%emt 0:01:34]} Bxd8 27. Rc6 {[%emt 0:05:05]} Bf6 {[%emt 0:02:44]} 28. Nd3 {[%emt 0:00:13]} Rd8 {[%emt 0:08:23]} 29. Nc5 a5 30. Ra6 {[%emt 0:03:52]} Rd5 {[%emt 0:03:18]} 31. Ne4 {[%emt 1:32:37]} Bd8 32. Ra8 Kd7 {[%emt 1:35:41]} 33. Ra7+ {[%emt 0:01:54]} Ke8 34. Kf1 {[%emt 0:06:15]} b4 {[%emt 0:00:30]} 35. Ke2 {[%emt 0:00:06]} f5 {[%emt 0:00:37]} 36. gxf5 gxf5 {[%emt 0:03:01]} 37. Nd2 {[%emt 0:00:39]} Rd7 {[%emt 0:00:12]} 38. Ra8 {[%emt 0:01:13]} Rd5 {[%emt 0:00:56]} 39. Nc4 {[%emt 0:00:17]} Kf7 {[%emt 0:00:58]} 40. Ra7+ {[%emt 0:00:53]} Kg6 41. f4 Bf6 {[%emt 0:00:00]} 42. Nxa5 {[%emt 0:00:00]} e5 {[%emt 0:00:00]} 43. fxe5 {[%emt 0:00:00]} Rxe5 {[%emt 0:00:00]} 44. Nc4 {[%emt 0:00:00]} Re4 {[%emt 0:00:00]} 45. Ra1 {[%emt 0:00:00]} 1/2-1/2

[Event "GER-chT Youth Countries 2020"]
[Site "Berlin"]
[Date "2020.10.01"]
[Round "4"]
[White "Roseneck, Jonas"]
[Black "Nothnagel, Marian Can"]
[Result "0-1"]
[ECO "C41"]
[WhiteElo "2417"]
[BlackElo "2355"]
[Annotator "ChessBase"]
[PlyCount "70"]
[EventDate "2020.09.30"]
[EventType "team-tourn"]
[EventRounds "7"]
[EventCountry "GER"]
[SourceTitle "playchess.com"]
[Source "ChessBase"]
[SourceQuality "1"]
[TimeControl "30/5400+30:0"]

1. e4 {[%emt 0:00:00]} e5 {[%emt 0:00:00]} 2. Nf3 {[%emt 0:00:00]} d6 {[%emt 0:00:00]} 3. d4 {[%emt 0:00:00]} exd4 {[%emt 0:00:00]} 4. Nxd4 {[%emt 0:00:00]} Nf6 {[%emt 0:00:00]} 5. Nc3 {[%emt 0:00:00]} Be7 {[%emt 0:00:00]} 6. Bf4 {[%emt 0:00:00]} O-O 7. Qd2 {[%emt 0:00:00]} c6 {[%emt 0:00:00]} 8. Be2 {[%emt 0:00:00]} Re8 9. O-O-O {[%emt 0:04:14]} Bf8 {[%emt 0:00:27]} 10. f3 {[%emt 0:00:28]} b5 11. Kb1 Bd7 {[%emt 0:04:02]} 12. Rde1 {[%emt 0:03:14]} Na6 {[%emt 0:01:32]} 13. g4 {[%emt 0:00:07]} Nc5 {[%emt 0:00:05]} 14. h4 {[%emt 0:00:13]} a5 {[%emt 0:04:21]} 15. Bg5 b4 {[%emt 0:03:47]} 16. Nd1 {[%emt 0:00:58]} a4 {[%emt 0:00:06]} 17. Bc4 Rb8 {[%emt 0:17:06]} 18. Ne3 {[%emt 0:32:41]} a3 {[%emt 0:28:41]} 19. b3 Nfxe4 {[%emt 0:00:13]} 20. fxe4 {[%emt 0:05:12]} Nxe4 21. Qg2 {[%emt 0:15:31]} Qb6 {[%emt 0:02:10]} 22. Ndf5 {[%emt 0:19:39]} Qc5 23. Nd1 Bxf5 {[%emt 0:25:12]} 24. gxf5 {[%emt 0:01:51]} d5 {[%emt 0:02:49]} 25. Rxe4 {[%emt 0:02:03]} dxe4 {[%emt 0:02:37]} 26. Bf6 {[%emt 0:03:48]} Qxf5 27. Rf1 {[%emt 0:05:24]} Qg6 {[%emt 0:01:25]} 28. Bg5 {[%emt 0:01:50]} Rb7 {[%emt 0:01:31]} 29. Qf2 {[%emt 0:01:31]} Rd7 {[%emt 0:01:04]} 30. Ne3 {[%emt 0:00:48]} Bc5 {[%emt 0:04:44]} 31. Rg1 {[%emt 1:33:32]} Qd6 {[%emt 1:31:56]} 32. Bf6 {[%emt 0:01:09]} g6 {[%emt 0:00:10]} 33. Qf5 {[%emt 0:01:39]} Kf8 {[%emt 0:00:44]} 34. Qg5 {[%emt 0:00:37]} Bxe3 {[%emt 0:00:09]} 35. Qxe3 {[%emt 0:00:07]} Qxf6 0-1

[Event "GER-chT Youth Countries 2020"]
[Site "Berlin"]
[Date "2020.10.02"]
[Round "4"]
[White "Reuker, Jari"]
[Black "Matthes, Aaron"]
[Result "1-0"]
[ECO "A18"]
[WhiteElo "2401"]
[BlackElo "2198"]
[Annotator "ChessBase"]
[PlyCount "73"]
[EventDate "2020.09.30"]
[EventType "team-tourn"]
[EventRounds "7"]
[EventCountry "GER"]
[SourceTitle "playchess.com"]
[Source "ChessBase"]
[SourceQuality "1"]
[TimeControl "30/5400+30:0"]

1. c4 {[%emt 0:00:00]} Nf6 {[%emt 0:00:00]} 2. Nc3 {[%emt 0:00:00]} e6 {[%emt 0:00:00]} 3. e4 {[%emt 0:00:00]} d5 {[%emt 0:00:00]} 4. cxd5 {[%emt 0:00:00]} exd5 {[%emt 0:00:00]} 5. e5 {[%emt 0:00:00]} Ne4 {[%emt 0:00:00]} 6. Nf3 {[%emt 0:00:01]} Bf5 {[%emt 0:00:00]} 7. d3 {[%emt 0:00:08]} Nxc3 {[%emt 0:00:05]} 8. bxc3 {[%emt 0:00:04]} c5 {[%emt 0:00:12]} 9. d4 {[%emt 0:00:05]} Nc6 {[%emt 0:00:05]} 10. Bd3 {[%emt 0:00:28]} Bxd3 {[%emt 0:00:30]} 11. Qxd3 {[%emt 0:00:05]} cxd4 {[%emt 0:00:07]} 12. Nxd4 {[%emt 0:00:06]} Nxd4 {[%emt 0:00:09]} 13. cxd4 {[%emt 0:00:05]} Bb4+ {[%emt 0:00:06]} 14. Ke2 {[%emt 0:00:04]} Qd7 {[%emt 0:27:59]} 15. Rb1 {[%emt 0:00:21]} Ba5 {[%emt 0:00:42]} 16. Qb5 {[%emt 0:06:28]} Bb6 {[%emt 0:00:39]} 17. Be3 {[%emt 0:00:45]} Rc8 {[%emt 0:10:35]} 18. Rhd1 {[%emt 0:35:45]} Rc4 {[%emt 0:11:45]} 19. h3 {[%emt 0:02:36]} Qc6 {[%emt 0:02:23]} 20. f4 {[%emt 0:13:23]} Kd7 {[%emt 0:07:23]} 21. f5 {[%emt 0:01:33]} Rc8 {[%emt 0:01:44]} 22. g4 {[%emt 0:07:18]} Qxb5 {[%emt 0:00:57]} 23. Rxb5 {[%emt 0:00:04]} Kc6 {[%emt 0:00:07]} 24. Rb2 {[%emt 0:02:54]} Kd7 {[%emt 0:00:38]} 25. Rb5 {[%emt 0:04:36]} Kc6 {[%emt 0:01:15]} 26. Rdb1 {[%emt 0:04:34]} Rc7 {[%emt 0:07:03]} 27. Kd3 {[%emt 0:01:33]} Ra4 {[%emt 0:01:16]} 28. R1b2 {[%emt 0:01:29]} Ra3+ {[%emt 0:02:46]} 29. Ke2 {[%emt 0:04:23]} Ra4 {[%emt 0:00:17]} 30. Kd3 {[%emt 0:01:32]} Ra3+ {[%emt 0:01:27]} 31. R5b3 {[%emt 1:31:23]} Ra4 {[%emt 1:31:38]} 32. Rc2+ {[%emt 0:05:46]} Kd7 {[%emt 0:00:06]} 33. e6+ {[%emt 0:00:15]} Ke8 {[%emt 0:10:21]} 34. Rxc7 {[%emt 0:05:10]} Bxc7 {[%emt 0:00:04]} 35. Rxb7 {[%emt 0:01:58]} Ra3+ {[%emt 0:00:48]} 36. Ke2 {[%emt 0:00:22]} Rxa2+ {[%emt 0:00:03]} 37. Kd1 {[%emt 0:00:57]} 1-0

[Event "GER-chT Youth Countries 2020"]
[Site "Berlin"]
[Date "2020.10.02"]
[Round "4"]
[White "Nothnagel, Marian Can"]
[Black "Hesse, Henrik"]
[Result "1-0"]
[ECO "B06"]
[WhiteElo "2355"]
[BlackElo "2242"]
[Annotator "ChessBase"]
[PlyCount "52"]
[EventDate "2020.09.30"]
[EventType "team-tourn"]
[EventRounds "7"]
[EventCountry "GER"]
[SourceTitle "playchess.com"]
[Source "ChessBase"]
[SourceQuality "1"]
[TimeControl "30/5400+30:0"]

1. e4 {[%emt 0:00:00]} g6 {[%emt 0:00:11]} 2. d4 {[%emt 0:00:04]} Bg7 {[%emt 0:00:12]} 3. Nc3 {[%emt 0:00:20]} d5 {[%emt 0:00:54]} 4. exd5 {[%emt 0:00:16]} Nf6 {[%emt 0:00:10]} 5. Bc4 {[%emt 0:01:14]} Nbd7 {[%emt 0:00:37]} 6. Nf3 {[%emt 0:00:33]} O-O {[%emt 0:01:33]} 7. O-O {[%emt 0:00:04]} Nb6 {[%emt 0:00:17]} 8. Bb3 {[%emt 0:00:28]} Nbxd5 {[%emt 0:00:56]} 9. Nxd5 {[%emt 0:02:56]} Nxd5 {[%emt 0:00:39]} 10. Re1 {[%emt 0:01:01]} Bg4 {[%emt 0:12:51]} 11. h3 {[%emt 0:00:27]} Bxf3 {[%emt 0:00:21]} 12. Qxf3 {[%emt 0:00:04]} e6 {[%emt 0:00:40]} 13. c3 {[%emt 0:02:04]} c6 {[%emt 0:03:41]} 14. Bd2 {[%emt 0:01:19]} a5 {[%emt 0:16:38]} 15. Rad1 {[%emt 0:08:11]} a4 {[%emt 0:03:35]} 16. Bc2 {[%emt 0:01:02]} Qb6 {[%emt 0:04:44]} 17. Bc1 {[%emt 0:00:26]} c5 {[%emt 0:02:07]} 18. dxc5 {[%emt 0:00:44]} Qxc5 {[%emt 0:00:05]} 19. a3 {[%emt 0:00:04]} b5 {[%emt 0:05:11]} 20. h4 {[%emt 0:03:58]} h5 {[%emt 0:09:42]} 21. Bd3 {[%emt 0:17:29]} Rab8 {[%emt 0:13:57]} 22. Bg5 {[%emt 0:01:05]} Nb6 {[%emt 0:05:31]} 23. Bf4 {[%emt 0:02:46]} e5 {[%emt 0:01:39]} 24. Be3 {[%emt 0:00:20]} Qd5 {[%emt 0:00:11]} 25. Qe2 {[%emt 0:00:52]} Nc4 {[%emt 0:08:36]} 26. Bxg6 {[%emt 0:00:25]} Qe6 {[%emt 0:00:02]} 1-0

[Event "GER-chT Youth Countries 2020"]
[Site "Berlin"]
[Date "2020.10.02"]
[Round "4"]
[White "Nguyen, Alex Dac-Vuong"]
[Black "Schneider, Jana"]
[Result "1/2-1/2"]
[ECO "C73"]
[WhiteElo "2343"]
[BlackElo "2270"]
[Annotator "ChessBase"]
[PlyCount "80"]
[EventDate "2020.09.30"]
[EventType "team-tourn"]
[EventRounds "7"]
[EventCountry "GER"]
[SourceTitle "playchess.com"]
[Source "ChessBase"]
[SourceQuality "1"]
[TimeControl "30/5400+30:0"]

1. e4 {[%emt 0:00:00]} e5 {[%emt 0:00:00]} 2. Nf3 {[%emt 0:00:00]} Nc6 {[%emt 0:00:00]} 3. Bb5 {[%emt 0:00:00]} a6 {[%emt 0:00:00]} 4. Ba4 {[%emt 0:00:00]} d6 {[%emt 0:00:13]} 5. Bxc6+ {[%emt 0:09:45]} bxc6 {[%emt 0:00:09]} 6. d4 {[%emt 0:00:09]} exd4 {[%emt 0:00:28]} 7. Nxd4 {[%emt 0:00:23]} c5 {[%emt 0:02:20]} 8. Nf3 {[%emt 0:05:44]} Be7 {[%emt 0:08:51]} 9. O-O {[%emt 0:07:59]} Nf6 {[%emt 0:02:11]} 10. e5 {[%emt 0:07:48]} Nd7 {[%emt 0:01:43]} 11. Re1 {[%emt 0:06:39]} O-O {[%emt 0:01:26]} 12. Qe2 {[%emt 0:07:07]} Nxe5 {[%emt 0:05:51]} 13. Nxe5 {[%emt 0:00:06]} dxe5 {[%emt 0:00:06]} 14. Qxe5 {[%emt 0:00:24]} Bf6 {[%emt 0:08:20]} 15. Qxc5 {[%emt 0:06:59]} Re8 {[%emt 0:01:58]} 16. Rf1 {[%emt 0:11:54]} a5 {[%emt 0:11:55]} 17. Na3 {[%emt 0:04:40]} Ba6 {[%emt 0:00:53]} 18. c4 {[%emt 0:00:20]} Bd4 {[%emt 0:12:23]} 19. Qf5 {[%emt 0:01:37]} Re2 {[%emt 0:01:55]} 20. Bg5 {[%emt 0:07:29]} Qe8 {[%emt 0:09:36]} 21. Rad1 {[%emt 0:06:08]} Bxb2 {[%emt 0:02:07]} 22. Nb5 {[%emt 0:02:17]} Re5 {[%emt 0:02:10]} 23. Qg4 {[%emt 0:00:33]} Re4 {[%emt 0:00:40]} 24. Qf3 {[%emt 0:00:23]} Rxc4 {[%emt 0:02:00]} 25. Rfe1 {[%emt 0:00:46]} Qc6 {[%emt 0:02:40]} 26. Qxc6 {[%emt 0:03:52]} Rxc6 {[%emt 0:00:16]} 27. Nxc7 {[%emt 0:01:19]} Rf8 {[%emt 0:11:13]} 28. Nxa6 {[%emt 0:02:15]} Rxa6 {[%emt 0:00:06]} 29. Re2 {[%emt 0:02:38]} Ba3 {[%emt 0:02:29]} 30. Rd3 {[%emt 0:00:57]} Rd6 {[%emt 0:02:07]} 31. Rxd6 {[%emt 1:31:09]} Bxd6 {[%emt 1:30:07]} 32. Rd2 {[%emt 0:00:31]} Re8 {[%emt 0:02:11]} 33. g3 {[%emt 0:00:22]} Bb4 {[%emt 0:00:09]} 34. Rc2 {[%emt 0:00:50]} h6 {[%emt 0:01:09]} 35. Be3 {[%emt 0:00:11]} Rd8 {[%emt 0:00:54]} 36. Kg2 {[%emt 0:00:22]} Kf8 {[%emt 0:00:49]} 37. Rc7 {[%emt 0:01:01]} Rd3 {[%emt 0:00:40]} 38. Kf3 {[%emt 0:01:13]} Ra3 {[%emt 0:02:19]} 39. Rc2 {[%emt 0:00:06]} Ke7 {[%emt 0:00:38]} 40. Ke4 {[%emt 0:00:11]} Ke6 {[%emt 0:00:52]} 1/2-1/2

[Event "GER-chT Youth Countries 2020"]
[Site "Berlin"]
[Date "2020.10.02"]
[Round "4"]
[White "Pallas, Sebastian"]
[Black "Hinrichs, Paul"]
[Result "1/2-1/2"]
[ECO "C90"]
[WhiteElo "2315"]
[BlackElo "2152"]
[Annotator "ChessBase"]
[PlyCount "105"]
[EventDate "2020.09.30"]
[EventType "team-tourn"]
[EventRounds "7"]
[EventCountry "GER"]
[SourceTitle "playchess.com"]
[Source "ChessBase"]
[SourceQuality "1"]
[TimeControl "30/5400+30:0"]

1. e4 {[%emt 0:00:00]} e5 {[%emt 0:00:00]} 2. Nf3 {[%emt 0:00:05]} Nc6 {[%emt 0:00:00]} 3. Bb5 {[%emt 0:00:19]} a6 {[%emt 0:00:00]} 4. Ba4 {[%emt 0:00:48]} Nf6 {[%emt 0:00:00]} 5. O-O {[%emt 0:01:08]} Be7 {[%emt 0:04:44]} 6. Re1 {[%emt 0:01:32]} b5 {[%emt 0:00:34]} 7. Bb3 {[%emt 0:00:12]} d6 {[%emt 0:00:09]} 8. c3 {[%emt 0:01:03]} O-O {[%emt 0:00:08]} 9. d3 {[%emt 0:02:26]} Na5 {[%emt 0:05:39]} 10. Bc2 {[%emt 0:01:09]} c5 {[%emt 0:00:25]} 11. Nbd2 {[%emt 0:02:08]} Re8 {[%emt 0:03:42]} 12. Nf1 {[%emt 0:00:58]} h6 {[%emt 0:05:08]} 13. h3 {[%emt 0:03:36]} Bf8 14. Ng3 {[%emt 0:17:32]} Nc6 {[%emt 0:02:41]} 15. d4 {[%emt 0:06:15]} g6 {[%emt 0:10:12]} 16. Be3 {[%emt 0:05:09]} exd4 {[%emt 0:06:44]} 17. cxd4 {[%emt 0:00:10]} Bb7 {[%emt 0:00:19]} 18. d5 {[%emt 0:05:43]} Ne5 {[%emt 0:04:05]} 19. Nd2 {[%emt 0:03:23]} Bg7 {[%emt 0:02:27]} 20. f4 {[%emt 0:00:50]} Nc4 {[%emt 0:00:48]} 21. Nxc4 {[%emt 0:03:26]} bxc4 {[%emt 0:00:05]} 22. Ba4 {[%emt 0:02:54]} Re7 {[%emt 0:03:22]} 23. Qc2 {[%emt 0:00:19]} a5 {[%emt 0:01:43]} 24. Bb5 {[%emt 0:00:25]} Ba6 {[%emt 0:00:14]} 25. Bxc4 {[%emt 0:04:33]} Bxc4 {[%emt 0:00:31]} 26. Qxc4 {[%emt 0:00:08]} Rb8 27. Bd2 {[%emt 0:07:16]} Rxb2 {[%emt 0:03:39]} 28. Bc3 Rc2 {[%emt 0:01:03]} 29. Rac1 {[%emt 0:06:04]} Rxc1 {[%emt 0:05:53]} 30. Rxc1 {[%emt 0:00:45]} Qe8 {[%emt 0:02:40]} 31. Re1 {[%emt 1:36:49]} h5 {[%emt 1:36:40]} 32. e5 {[%emt 0:05:26]} Nd7 {[%emt 0:02:55]} 33. Ne4 {[%emt 0:05:22]} dxe5 {[%emt 0:01:11]} 34. d6 {[%emt 0:01:36]} Re6 {[%emt 0:00:50]} 35. Ng5 {[%emt 0:01:15]} Rxd6 {[%emt 0:08:45]} 36. fxe5 {[%emt 0:00:07]} Nb6 {[%emt 0:00:59]} 37. exd6 {[%emt 0:04:08]} Qxe1+ {[%emt 0:00:09]} 38. Bxe1 {[%emt 0:00:02]} Nxc4 {[%emt 0:00:07]} 39. d7 {[%emt 0:00:33]} Bf6 {[%emt 0:00:16]} 40. Ne4 {[%emt 0:00:24]} Be7 {[%emt 0:00:46]} 41. Kh1 {[%emt 0:00:00]} Kf8 {[%emt 0:00:00]} 42. Bf2 {[%emt 0:00:00]} Ne5 {[%emt 0:00:00]} 43. Nxc5 {[%emt 0:00:00]} Bd8 {[%emt 0:00:00]} 44. Nb7 {[%emt 0:00:00]} Ke7 {[%emt 0:00:00]} 45. Bh4+ {[%emt 0:00:00]} g5 {[%emt 0:00:00]} 46. Bxg5+ {[%emt 0:00:00]} f6 {[%emt 0:00:00]} 47. Nxd8 {[%emt 0:00:00]} fxg5 {[%emt 0:00:00]} 48. Nb7 {[%emt 0:00:00]} Kxd7 {[%emt 0:00:00]} 49. Nxa5 {[%emt 0:00:00]} g4 {[%emt 0:00:00]} 50. Kh2 {[%emt 0:00:00]} h4 {[%emt 0:00:00]} 51. Kg1 {[%emt 0:00:03]} gxh3 {[%emt 0:00:00]} 52. gxh3 {[%emt 0:00:04]} Nd3 {[%emt 0:00:00]} 53. Nc4 {[%emt 0:01:13]} 1/2-1/2